bitfinex-derivatives/quotes_ETHF0:USTF0_20210702
["timestamp","ask_amount","ask_price","bid_price","bid_amount"]
[1625238967686,2.20527,2105.6,2105.0,2.20527]
[1625238969591,2.20527,2105.1,2103.7,1.0]
[1625238969692,2.20527,2105.1,2103.6,49.615]
[1625238970193,2.20527,2105.1,2103.6,54.615]
[1625238970294,2.20527,2105.1,2103.7,17.32998]
[1625238971550,2.20527,2105.1,2104.7,2.20527]
[1625238971649,2.20527,2105.1,2104.7,4.62567]
[1625238974308,2.20527,2105.1,2104.7,2.20527]
[1625238977569,2.20527,2104.8,2104.7,2.20527]
[1625238979371,4.98897,2104.8,2104.7,2.20527]
[1625238979621,4.98897,2104.8,2104.1,2.20527]
[1625238981627,2.20527,2104.5,2104.1,2.20527]
[1625238983586,4.41054,2104.5,2104.4,2.20527]
[1625238990934,4.41054,2104.5,2104.1,2.20527]
[1625238991036,4.41054,2104.5,2102.9,4.759]
[1625238991588,2.20527,2104.0,2103.7,2.20527]
[1625238991689,4.98527,2104.0,2103.7,2.20527]
[1625238993040,4.98527,2104.0,2102.4,55.6537]
[1625238993143,4.98527,2104.0,2102.4,4.759]
[1625238993247,4.98527,2104.0,2102.5,0.18312208]
[1625238993605,4.98527,2104.0,2101.7,5.6967]
[1625238993745,4.98527,2104.0,2102.9,2.20527]
[1625238993746,2.20527,2103.0,2102.9,2.20527]
[1625238993844,5.71197,2103.0,2102.9,2.20527]
[1625238994948,5.71197,2103.0,2101.7,5.759]
[1625238995099,5.71197,2103.0,2101.7,4.759]
[1625238995198,5.71197,2103.0,2101.8,0.1832623]
[1625238995654,2.20527,2102.7,2102.4,2.20527]
[1625238996702,4.58817,2102.7,2102.4,2.20527]
[1625238996905,4.58817,2102.7,2102.2,2.20527]
[1625238997359,2.20527,2102.7,2102.2,2.20527]
[1625238997704,4.41054,2102.7,2102.2,2.20527]
[1625238999710,2.20527,2102.3,2102.2,2.20527]
[1625239001676,2.20527,2102.3,2101.8,2.20527]
[1625239001781,10.61897,2102.3,2101.0,1.0]
[1625239001878,10.61897,2102.3,2100.9,1.823]
[1625239002228,5.61897,2102.3,2100.9,1.823]
[1625239002580,5.61897,2102.3,2100.0,0.05]
[1625239002704,6.61897,2102.3,2100.0,0.05]
[1625239003041,6.61897,2102.3,2100.1,0.18336066]
[1625239003343,6.61897,2102.3,2100.1,1.18336066]
[1625239003594,6.61897,2102.3,2100.2,0.18323665]
[1625239003693,2.20527,2100.9,2100.8,2.20527]
[1625239003793,1.0,2102.2,2100.8,2.20527]
[1625239003896,8.4137,2102.3,2100.8,2.20527]
[1625239004342,3.4137,2102.3,2100.8,2.20527]
[1625239005093,8.4137,2102.3,2100.8,2.20527]
[1625239005294,3.4137,2102.3,2100.8,2.20527]
[1625239005644,2.20527,2100.9,2100.8,2.20527]
[1625239006946,2.20527,2101.1,2100.8,2.20527]
[1625239007048,2.20527,2101.1,2100.8,5.06497]
[1625239007252,1.0,2102.3,2100.8,5.06497]
[1625239007399,15.6968,2102.8,2100.8,5.06497]
[1625239007500,15.6968,2102.8,2100.9,0.18286753]
[1625239007756,2.20527,2101.9,2101.8,2.20527]
[1625239007852,2.20527,2101.9,2101.8,5.19567]
[1625239009558,2.20527,2101.9,2101.8,2.20527]
[1625239009759,4.41054,2101.9,2101.8,2.20527]
[1625239010061,4.41054,2101.9,2100.8,4.759]
[1625239010621,4.41054,2101.9,2100.9,0.18264921]
[1625239010723,4.41054,2101.9,2101.4,59.747]
[1625239010873,15.6968,2102.8,2101.4,62.3145]
[1625239011081,15.6968,2102.8,2101.5,5.0]
[1625239011183,5.0,2104.8,2101.5,5.0]
[1625239011381,1.93191651,2105.8,2101.5,5.0]
[1625239011382,6.93191651,2105.8,2101.5,6.0]
[1625239011482,15.8351,2104.0,2101.5,1.0]
[1625239011635,15.8351,2104.0,2101.5,18.254896]
[1625239011735,2.20527,2103.0,2102.7,2.20527]
[1625239012434,4.51847,2103.0,2102.7,2.20527]
[1625239014035,4.51847,2103.0,2102.5,2.20527]
[1625239015589,2.20527,2103.0,2102.5,2.20527]
[1625239015789,2.20527,2102.6,2102.5,2.20527]
[1625239015939,2.20527,2103.0,2102.5,2.20527]
[1625239016641,2.20527,2103.0,2102.5,5.52847]
[1625239016740,15.8351,2104.0,2102.5,5.52847]
[1625239017795,2.20527,2103.2,2102.8,2.20527]
[1625239018094,2.20527,2103.2,2102.5,3.3232]
[1625239018194,2.20527,2103.2,2101.9,3.1101]
[1625239018347,2.20527,2103.2,2101.8,62.4688]
[1625239019047,2.20527,2103.2,2101.8,4.759]
[1625239019149,5.95717,2103.2,2101.8,4.759]
[1625239019596,5.95717,2103.2,2101.1,5.759]
[1625239019747,2.20527,2102.6,2102.4,2.20527]
[1625239021602,4.69547,2103.2,2102.4,2.20527]
[1625239021803,2.20527,2102.8,2102.4,2.20527]
[1625239022803,1.0,2103.9,2102.4,2.20527]
[1625239022905,15.8351,2104.0,2102.4,5.14197]
[1625239023806,2.20527,2103.6,2103.4,2.20527]
[1625239027161,15.8351,2104.0,2103.4,2.20527]
[1625239027362,1.0,2105.2,2103.4,2.20527]
[1625239027524,0.9442,2105.4,2103.4,2.20527]
[1625239027612,13.0,2105.8,2103.4,2.20527]
[1625239027714,5.0,2105.8,2103.4,2.20527]
[1625239027816,2.20527,2104.4,2104.3,2.20527]
[1625239027916,2.20527,2104.4,2104.0,2.20527]
[1625239028016,5.87667,2104.4,2104.0,2.20527]
[1625239028480,5.87667,2104.4,2102.3,1.0]
[1625239028583,5.87667,2104.4,2101.8,6.13201681]
[1625239028680,5.0,2104.3,2101.8,6.13201681]
[1625239028889,5.0,2104.3,2101.8,5.759]
[1625239029540,5.0,2104.3,2101.8,1.0]
[1625239029742,8.0,2104.2,2101.8,1.0]
[1625239029842,2.20527,2102.3,2102.2,2.20527]
[1625239029941,5.46467,2102.3,2102.2,2.20527]
[1625239030544,5.46467,2102.3,2102.0,2.20527]
[1625239031898,3.2594,2102.3,2102.0,2.20527]
[1625239032000,2.1,2103.9,2102.0,2.20527]
[1625239032101,5.0,2104.0,2102.0,5.24347]
[1625239032199,5.0,2103.8,2102.0,5.24347]
[1625239032501,8.7481,2103.8,2102.0,5.24347]
[1625239033255,17.265208,2103.7,2102.0,5.24347]
[1625239033403,54.951,2103.3,2102.0,5.24347]
[1625239033503,54.951,2103.3,2102.0,2.20527]
[1625239033504,62.4352,2103.3,2102.0,2.20527]
[1625239033608,57.4352,2103.3,2102.0,2.20527]
[1625239033911,2.20527,2102.3,2102.0,2.20527]
[1625239034362,4.75887,2102.3,2102.0,2.20527]
[1625239035831,2.20527,2102.3,2102.0,2.20527]
[1625239037018,2.20527,2102.5,2102.0,2.20527]
[1625239037130,2.20527,2102.5,2102.0,4.90047]
[1625239037822,1.0,2103.5,2102.0,4.90047]
[1625239037919,2.20527,2103.2,2102.8,2.20527]
[1625239038021,2.20527,2103.2,2102.8,4.77627]
[1625239038120,3.20527,2103.5,2102.8,4.77627]
[1625239039171,3.20527,2103.5,2102.8,2.20527]
[1625239039627,3.20527,2103.5,2102.6,2.20527]
[1625239039628,3.20527,2103.5,2101.2,1.37421945]
[1625239039722,2.20527,2103.5,2101.2,1.37421945]
[1625239039824,2.20527,2103.5,2101.0,51.90422903]
[1625239039922,4.3499,2103.8,2102.3,2.20527]
[1625239040023,3.3499,2103.8,2102.3,2.20527]
[1625239040724,50.8017,2103.2,2102.3,7e-05]
[1625239040826,54.3119,2103.2,2101.0,4.759]
[1625239041641,59.3119,2103.2,2101.0,4.759]
[1625239041878,2.20527,2101.5,2101.4,2.20527]
[1625239042680,3.4429,2102.5,2101.4,2.20527]
[1625239043947,2.20527,2102.0,2101.4,2.20527]
[1625239044800,5.89297,2102.0,2101.4,2.20527]
[1625239045948,5.89297,2102.0,2101.9,2.20527]
[1625239046201,5.89297,2102.0,2101.4,2.20527]
[1625239049960,2.20527,2101.5,2101.4,2.20527]
[1625239051818,6.00657,2101.5,2101.4,2.20527]
[1625239052222,2.20527,2101.5,2101.4,2.20527]
[1625239052320,2.20527,2102.0,2101.4,2.20527]
[1625239052421,2.20527,2102.0,2101.4,5.14757]
[1625239053923,2.20527,2102.0,2101.9,2.20527]
[1625239055577,2.20527,2102.0,2101.4,2.20527]
[1625239055677,4.51267,2102.0,2101.4,2.20527]
[1625239056031,2.20527,2101.5,2101.4,2.20527]
[1625239056128,5.46597,2101.5,2101.4,2.20527]
[1625239059534,5.46597,2101.5,2100.0,0.05]
[1625239059935,5.46597,2101.5,2100.1,0.18459487]
[1625239060037,2.20527,2101.2,2100.8,2.20527]
[1625239062759,2.20527,2101.5,2100.8,2.20527]
[1625239064110,2.20527,2101.5,2101.3,2.20527]
[1625239064362,2.20527,2101.8,2101.3,2.20527]
[1625239064459,2.20527,2101.8,2101.3,4.70217]
[1625239065162,15.498,2102.7,2101.3,4.70217]
[1625239066011,2.20527,2102.0,2101.9,2.20527]
[1625239066614,5.52047,2102.0,2101.9,2.20527]
[1625239068062,7.72574,2102.0,2101.9,2.20527]
[1625239068764,4.41054,2102.0,2101.9,2.20527]
[1625239070017,15.498,2102.7,2101.9,4.41054]
[1625239070117,15.498,2102.7,2101.9,7.76644]
[1625239070415,2.20527,2102.8,2101.9,7.76644]
[1625239072073,2.20527,2102.8,2102.6,2.20527]
[1625239076632,2.20527,2102.8,2101.6,6.13938927]
[1625239076782,5.13617,2102.8,2101.6,6.13938927]
[1625239077181,5.13617,2102.8,2101.6,4.759]
[1625239078285,2.20527,2102.3,2102.2,2.20527]
[1625239080240,4.41054,2102.3,2102.2,2.20527]
[1625239083664,4.41054,2102.3,2102.0,2.20527]
[1625239083764,4.41054,2102.3,2101.3,1.3904035]
[1625239083863,4.41054,2102.3,2101.0,15.7768]
[1625239083964,4.41054,2102.3,722.29,23.776]
[1625239084113,4.41054,2102.3,2099.9,2.79580939]
[1625239084213,2.20527,2101.8,2101.6,2.20527]
[1625239084615,1.39780908,2102.9,2101.6,2.20527]
[1625239084814,1.39780908,2102.9,2101.6,5.31597]
[1625239085517,14.4002,2103.0,2101.6,5.31597]
[1625239085820,14.4002,2103.0,2101.8,42.3112]
[1625239086318,2.20527,2102.6,2102.4,2.20527]
[1625239086419,2.20527,2102.6,2102.4,5.35057]
[1625239086971,1.39773015,2103.5,2102.4,5.35057]
[1625239087171,1.39766765,2103.7,2102.4,5.35057]
[1625239087524,1.39766765,2103.7,2102.4,10.35057]
[1625239087773,1.39766765,2103.7,2102.5,17.225131]
[1625239087873,1.39756735,2103.9,2102.6,5.0]
[1625239088221,2.79513471,2104.1,2102.6,5.0]
[1625239088222,2.20527,2103.8,2103.7,2.20527]
[1625239088321,2.20527,2103.8,2103.7,5.32467]
[1625239088425,1.3971089,2104.6,2103.7,5.32467]
[1625239088675,1.39695434,2104.8,2103.7,5.32467]
[1625239089773,1.95573608,2104.9,2103.7,5.32467]
[1625239089774,1.39637695,2104.9,2103.7,5.32467]
[1625239090224,2.20527,2104.3,2104.2,2.20527]
[1625239091679,5.25867,2104.3,2104.2,2.20527]
[1625239092333,7.46394,2104.3,2104.2,2.20527]
[1625239098704,7.46394,2104.3,2103.7,2.20527]
[1625239098815,7.46394,2104.3,2102.9,1.0]
[1625239098908,7.46394,2104.3,2102.3,30.2942]
[1625239099053,7.46394,2104.3,2102.4,1.38504303]
[1625239099405,7.46394,2104.3,2102.3,1.38513223]
[1625239100154,8.85908763,2104.3,2102.2,44.8262]
[1625239100304,2.20527,2103.3,2103.1,2.20527]
[1625239100406,5.81177,2103.3,2103.1,2.20527]
[1625239101760,5.81177,2103.3,2102.1,1.0]
[1625239101855,5.81177,2103.3,2102.0,1.3862506]
[1625239102108,5.81177,2103.3,2101.6,1.0]
[1625239102257,5.81177,2103.3,2101.5,17.09774615]
[1625239102357,5.81177,2103.3,2102.4,2.20527]
[1625239102358,2.20527,2102.5,2102.4,2.20527]
[1625239102458,4.87747,2102.5,2102.4,2.20527]
[1625239102559,4.87747,2102.5,2102.2,2.20527]
[1625239104361,2.20527,2102.3,2102.2,2.20527]
[1625239106014,2.6722,2102.5,2102.2,2.20527]
[1625239106113,1.39564238,2103.5,2102.2,2.20527]
[1625239106414,2.20527,2103.1,2102.6,2.20527]
[1625239108426,2.20527,2103.1,2103.0,2.20527]
[1625239109633,2.20527,2103.1,2103.0,5.53367]
[1625239109732,2.20527,2103.3,2103.0,5.53367]
[1625239109834,14.4109,2103.7,2103.0,5.53367]
[1625239110390,2.20527,2103.5,2103.3,2.20527]
[1625239111589,5.78607,2103.5,2103.3,2.20527]
[1625239111789,5.78607,2103.5,2102.3,1.0]
[1625239111938,5.78607,2103.5,2101.9,1.39150466]
[1625239112240,5.78607,2103.5,2101.7,1.39269435]
[1625239112439,2.20527,2102.8,2102.6,2.20527]
[1625239112541,5.44327,2102.8,2102.6,2.20527]
[1625239124670,2.20527,2102.8,2102.6,2.20527]
[1625239124816,14.4109,2103.7,2102.6,2.20527]
[1625239125067,6.15554743,2104.1,2102.6,2.20527]
[1625239125517,4.759,2104.1,2102.6,7.20527]
[1625239125617,1.39636468,2104.4,2103.4,51.2351]
[1625239126518,2.20527,2104.3,2104.0,2.20527]
[1625239127120,3.60149924,2104.3,2104.0,2.20527]
[1625239127219,7.31359924,2104.3,2104.0,2.20527]
[1625239127522,7.31359924,2104.3,2103.7,2.20527]
[1625239127523,1.39629305,2104.2,2103.7,2.20527]
[1625239128470,2.20527,2104.0,2103.7,2.20527]
[1625239130177,4.49707,2104.0,2103.7,2.20527]
[1625239130526,4.49707,2104.0,2103.9,2.20527]
[1625239137808,2.20527,2104.0,2103.9,2.20527]
[1625239143041,5.76527,2104.0,2103.9,2.20527]
[1625239143244,5.76527,2104.0,2103.1,1.0]
[1625239143344,5.76527,2104.0,2102.2,2.33863902]
[1625239143440,6.76527,2104.0,2102.2,2.39333902]
[1625239143692,6.76527,2104.0,2102.2,1.0]
[1625239144042,6.76527,2104.0,2102.3,17.121381]
[1625239144142,5.76527,2104.0,2102.3,18.121381]
[1625239144247,5.76527,2104.0,2102.3,1.0]
[1625239144545,5.76527,2104.0,2102.7,2.20527]
[1625239144546,2.20527,2102.8,2102.7,2.20527]
[1625239144655,5.29287,2102.8,2102.7,2.20527]
[1625239146868,3.0876,2102.8,2102.7,2.20527]
[1625239146947,2.20527,2103.2,2102.7,2.20527]
[1625239148603,2.20527,2103.2,2103.1,2.20527]
[1625239150010,2.20527,2103.3,2103.1,2.20527]
[1625239150562,2.20527,2103.3,2103.2,2.20527]
[1625239150813,2.20527,2103.7,2103.2,2.20527]
[1625239152620,2.20527,2103.7,2103.6,2.20527]
[1625239156730,16.70137521,2104.5,2103.6,5.91217]
[1625239157081,1.39666329,2104.9,2103.6,5.91217]
[1625239157239,1.39666329,2104.9,2103.6,10.91217]
[1625239157433,1.39650878,2105.1,2103.7,17.362636]
[1625239157533,1.39650878,2105.1,2104.7,53.908]
[1625239157682,1.39650878,2105.1,2104.7,57.0001]
[1625239157831,1.39689326,2105.0,2104.7,57.0001]
[1625239157934,1.39689326,2105.0,2104.7,62.0001]
[1625239158234,1.39637994,2105.8,2104.7,62.0001]
[1625239158332,1.39637994,2105.8,2104.7,57.0001]
[1625239158435,1.39637994,2105.8,2104.8,17.256861]
[1625239158532,1.39637994,2105.8,2104.8,22.256861]
[1625239158632,1.39637994,2105.8,2105.7,4.41054]
[1625239158782,1.39637994,2105.8,2105.7,6.70084]
[1625239158983,2.79275988,2106.0,2105.7,6.70084]
[1625239158984,1.39625196,2106.0,2105.7,6.70084]
[1625239159388,1.39625196,2106.0,2105.9,45.1373]
[1625239159488,2.20527,2106.2,2105.9,45.1373]
[1625239159936,3.6002861,2106.2,2105.7,6.70084]
[1625239160388,3.6002861,2106.2,2105.7,48.04454]
[1625239160641,3.6002861,2106.2,2106.1,2.20527]
[1625239160841,2.20527,2106.2,2106.1,2.20527]
[1625239164800,2.20527,2106.2,2105.0,1.0]
[1625239164897,2.20527,2106.2,2104.7,53.908]
[1625239165451,2.20527,2106.2,2104.8,17.264856]
[1625239166655,2.20527,2106.2,2106.1,4.41054]
[1625239166903,2.20527,2106.4,2106.1,4.41054]
[1625239170727,4.41054,2106.4,2106.1,4.41054]
[1625239171729,4.41054,2106.4,2104.8,1.0]
[1625239171829,7.56344,2106.4,2104.7,53.908]
[1625239171979,7.56344,2106.4,2104.7,54.908]
[1625239172432,7.56344,2106.4,2104.8,17.2902]
[1625239172783,7.56344,2106.4,2105.8,2.20527]
[1625239176748,7.56344,2106.4,2106.3,2.20527]
[1625239182860,7.56344,2106.4,2106.3,7e-05]
[1625239182962,7.56344,2106.4,2104.8,1.0]
[1625239183060,8.50584,2106.4,2104.1,0.9606]
[1625239183166,6.0,2106.3,2103.3,7.7766821]
[1625239183262,6.0,2106.3,2103.3,2.7766821]
[1625239183367,6.0,2106.3,2103.5,1.38834105]
[1625239183517,1.38276729,2106.2,2103.1,44.3547]
[1625239183617,1.0,2106.1,2103.1,44.3547]
[1625239183968,6.0,2106.1,2103.7,1.0]
[1625239184170,7.3828858,2106.1,2103.7,1.0]
[1625239184769,2.20527,2104.6,2104.2,2.20527]
[1625239185481,2.20527,2104.6,2104.4,54.1607]
[1625239185782,2.20527,2104.6,2104.4,57.677]
[1625239186132,2.20527,2104.9,2104.4,57.677]
[1625239186331,1.0,2106.3,2104.4,57.677]
[1625239186434,17.26231615,2106.6,2104.4,57.677]
[1625239186533,17.26231615,2106.6,2104.4,58.677]
[1625239186632,15.8785,2106.6,2104.4,58.677]
[1625239186882,2.20527,2105.4,2105.2,2.20527]
[1625239187032,2.20527,2105.4,2104.9,4.79967]
[1625239187889,2.20527,2105.4,2104.9,2.5944]
[1625239188037,2.20527,2105.4,2104.0,48.455]
[1625239188139,2.20527,2105.4,2104.0,47.455]
[1625239188641,2.20527,2105.4,2104.1,17.201908]
[1625239188839,2.20527,2105.4,2105.1,2.20527]
[1625239190852,2.20527,2105.2,2105.0,3.4362]
[1625239190953,2.20527,2105.2,2104.5,2.6636]
[1625239192004,5.16727,2105.2,2103.7,1.0]
[1625239192104,5.16727,2105.2,2103.4,15.0663]
[1625239192203,5.16727,2105.2,2103.5,1.0]
[1625239192805,2.20527,2104.4,2104.3,2.20527]
[1625239195109,2.20527,2104.4,2103.3,1.0]
[1625239195259,2.20527,2104.4,2102.8,1.0]
[1625239195359,2.20527,2104.4,2102.5,14.9096]
[1625239195809,2.20527,2104.4,2102.6,5.0]
[1625239196113,2.20527,2104.4,2102.5,14.9096]
[1625239196414,2.20527,2104.4,2102.6,1.0]
[1625239196764,2.20527,2104.4,2102.6,6.0]
[1625239196865,2.20527,2104.4,2103.8,2.20527]
[1625239196979,2.20527,2104.4,2104.2,54.8789]
[1625239197072,14.895,2105.1,2104.2,54.8789]
[1625239198888,14.895,2105.1,2104.6,2.20527]
[1625239198889,2.20527,2104.7,2104.6,2.20527]
[1625239199094,2.20527,2104.7,2104.3,2.20527]
[1625239199493,5.78127,2104.7,2104.3,2.20527]
[1625239199894,5.78127,2104.7,2104.2,0.1]
[1625239200854,2.20527,2104.3,2104.2,0.1]
[1625239204927,2.20527,2104.3,2104.2,2.30527]
[1625239205583,14.895,2105.1,2104.2,2.30527]
[1625239205680,14.895,2105.1,2104.2,4.74427]
[1625239206891,2.20527,2105.0,2104.7,2.20527]
[1625239207290,4.63357,2105.0,2104.7,2.20527]
[1625239207942,4.63357,2105.0,2104.2,0.1]
[1625239208945,2.20527,2104.3,2104.2,0.1]
[1625239209046,5.60207,2104.3,2104.2,0.1]
[1625239210451,3.3968,2104.3,2104.2,0.1]
[1625239210599,14.895,2105.1,2104.2,0.1]
[1625239210903,2.20527,2104.6,2104.5,2.20527]
[1625239212055,14.895,2105.1,2104.5,2.20527]
[1625239212855,14.895,2105.1,2104.2,0.1]
[1625239213009,2.20527,2104.3,2104.2,0.1]
[1625239215023,2.20527,2104.3,2104.2,2.30527]
[1625239217123,2.20527,2104.3,2104.2,45.56427]
[1625239217623,14.895,2105.1,2104.2,45.56427]
[1625239218927,2.20527,2104.8,2104.5,2.20527]
[1625239221032,2.20527,2104.7,2104.5,2.20527]
[1625239224654,14.895,2105.1,2104.5,2.20527]
[1625239224803,14.895,2105.1,2104.5,5.35867]
[1625239225006,14.895,2105.1,2105.0,4.41054]
[1625239225308,2.20527,2105.3,2105.0,4.41054]
[1625239228516,2.20527,2105.3,2105.0,61.36244]
[1625239229081,2.20527,2105.3,2105.0,4.41054]
[1625239229734,2.20527,2105.3,2104.2,0.1]
[1625239229833,4.72237,2105.3,2104.2,0.1]
[1625239230396,6.11706803,2105.3,2104.2,0.1]
[1625239230745,1.39471881,2105.2,2104.2,0.1]
[1625239231046,2.20527,2104.8,2104.7,2.20527]
[1625239231146,5.68697,2104.8,2104.7,2.20527]
[1625239232101,5.68697,2104.8,2104.2,0.1]
[1625239233053,2.20527,2104.5,2104.3,2.20527]
[1625239234357,1.39497491,2105.3,2104.3,2.20527]
[1625239234455,2.78994983,2105.5,2104.3,4.95347]
[1625239234456,1.3949325,2105.5,2104.3,4.95347]
[1625239234757,1.3949325,2105.5,2105.3,54.0251]
[1625239234857,1.39489913,2105.6,2105.3,57.6241]
[1625239235057,1.39489913,2105.6,2105.4,2.20527]
[1625239235159,2.20527,2105.5,2105.4,2.20527]
[1625239235668,5.51657,2105.5,2105.4,2.20527]
[1625239236566,6.91232106,2105.5,2105.4,2.20527]
[1625239236915,7.47072334,2105.5,2105.4,2.20527]
[1625239237013,7.47072334,2105.5,2104.2,0.1]
[1625239237112,2.20527,2104.9,2104.8,2.20527]
[1625239237214,4.82087,2104.9,2104.8,2.20527]
[1625239238113,4.82087,2104.9,2104.6,2.20527]
[1625239238567,4.82087,2104.9,2104.2,0.1]
[1625239238968,6.21725208,2104.9,2104.2,0.1]
[1625239239118,2.20527,2104.3,2104.2,0.1]
[1625239239267,5.50147,2104.3,2104.2,0.1]
[1625239240985,5.50147,2104.3,2104.2,46.031]
[1625239241534,5.50147,2104.3,2104.2,0.1]
[1625239242087,5.50147,2104.3,2104.2,54.5818]
[1625239242187,1.39794294,2104.7,2104.2,54.5818]
[1625239242287,1.39794294,2104.7,2104.2,57.0307]
[1625239242588,1.39786646,2104.9,2104.2,57.0307]
[1625239243141,2.20527,2104.6,2104.4,2.20527]
[1625239243241,2.20527,2104.8,2104.4,2.20527]
[1625239245207,2.20527,2104.5,2104.4,2.20527]
[1625239246211,5.42457,2104.5,2104.4,2.20527]
[1625239248962,1.39851413,2104.8,2104.4,2.20527]
[1625239249112,1.39847834,2104.9,2104.4,4.74567]
[1625239249213,1.39847834,2104.9,2104.8,2.20527]
[1625239249364,3.60362709,2105.2,2104.8,2.20527]
[1625239250166,1.39845339,2105.1,2104.8,2.20527]
[1625239250415,2.20527,2105.2,2104.8,2.20527]
[1625239250917,3.6037011,2105.2,2104.8,2.20527]
[1625239251217,2.20527,2104.9,2104.8,2.20527]
[1625239253172,5.32637,2104.9,2104.8,2.20527]
[1625239253370,6.72543375,2104.9,2104.8,2.20527]
[1625239253823,7.28530585,2104.9,2104.8,2.20527]
[1625239255972,8.1251774,2104.9,2104.8,2.20527]
[1625239256322,8.1251774,2104.9,2104.2,0.1]
[1625239256472,5.32637,2104.9,2104.2,0.1]
[1625239256873,1.95922625,2104.7,2104.2,0.1]
[1625239256973,1.39944732,2104.6,2104.2,0.1]
[1625239257273,2.20527,2104.3,2104.2,0.1]
[1625239257825,4.57627,2104.3,2104.2,0.1]
[1625239259288,6.78154,2104.3,2104.2,2.30527]
[1625239260343,4.57627,2104.3,2104.2,2.30527]
[1625239260444,2.20527,2104.3,2104.2,2.30527]
[1625239260904,8.36447483,2104.3,2104.2,2.30527]
[1625239261811,2.20527,2104.3,2104.2,2.30527]
[1625239262060,2.20527,2104.3,2104.2,45.96077]
[1625239262210,2.20527,2104.3,2104.2,2.30527]
[1625239262364,5.43067,2104.3,2104.2,2.30527]
[1625239262516,9.91135801,2104.3,2104.2,2.30527]
[1625239262768,9.91135801,2104.3,2104.2,49.57487]
[1625239263168,9.91135801,2104.3,2104.2,2.30527]
[1625239263471,9.91135801,2104.3,2104.2,0.1]
[1625239263871,5.43067,2104.3,2104.2,0.1]
[1625239264221,2.20527,2104.3,2104.2,0.1]
[1625239264523,5.60203715,2104.4,2104.2,0.1]
[1625239264974,2.20527,2104.7,2104.2,0.1]
[1625239264975,9.80214341,2104.3,2104.2,0.1]
[1625239265325,9.80214341,2104.3,2104.2,2.30527]
[1625239265424,6.16134728,2104.3,2104.2,2.30527]
[1625239265677,6.16134728,2104.3,2104.2,45.83467]
[1625239265876,9.80362279,2104.4,2104.2,45.83467]
[1625239266177,3.60589884,2104.7,2104.2,45.83467]
[1625239267328,2.20527,2104.4,2104.2,48.03994]
[1625239267580,2.20527,2104.4,2104.2,2.30527]
[1625239267682,5.69407,2104.4,2104.2,2.30527]
[1625239268336,5.69407,2104.4,2104.2,49.10217]
[1625239268992,5.69407,2104.4,2104.2,2.30527]
[1625239269290,2.20527,2104.3,2104.2,2.30527]
[1625239275323,3.60480381,2104.3,2104.2,2.30527]
[1625239276830,2.20527,2104.3,2104.2,2.30527]
[1625239277682,3.60577236,2104.3,2104.2,2.30527]
[1625239278295,2.20527,2104.3,2104.2,2.30527]
[1625239279699,3.606652,2104.3,2104.2,2.30527]
[1625239281609,2.20527,2104.3,2104.2,2.30527]
[1625239282466,2.20527,2104.3,2104.2,19.689711]
[1625239282565,1.40087191,2104.4,2104.2,19.689711]
[1625239283018,1.40145423,2104.6,2104.2,19.689711]
[1625239283315,1.40145423,2104.6,2104.5,2.20527]
[1625239283517,1.40167395,2104.7,2104.5,2.20527]
[1625239283617,1.40167395,2104.7,2104.5,5.09047]
[1625239284320,1.40167395,2104.7,2104.6,56.3618]
[1625239284420,1.40167395,2104.7,2104.5,2.20527]
[1625239284773,1.96092214,2104.6,2104.5,2.20527]
[1625239285375,2.80109324,2104.6,2104.5,2.20527]
[1625239285776,2.20527,2104.7,2104.5,2.20527]
[1625239286226,6.68504748,2104.7,2104.5,2.20527]
[1625239286679,3.64081631,2104.6,2104.5,2.20527]
[1625239287231,3.64081631,2104.6,2104.5,54.00737]
[1625239287385,3.6415063,2104.7,2104.5,54.00737]
[1625239287783,1.40155954,2104.7,2104.5,54.00737]
[1625239288232,1.40207557,2104.9,2104.5,54.00737]
[1625239288332,1.40207557,2104.9,2104.5,57.26827]
[1625239288586,1.40224084,2105.0,2104.6,17.232799]
[1625239289386,1.40224084,2105.0,2104.9,2.20527]
[1625239289735,1.37387802,2105.1,2104.9,2.20527]
[1625239290085,1.37387802,2105.1,2105.0,17.37747]
[1625239290236,2.80424531,2105.4,2105.0,17.37747]
[1625239291037,2.80319783,2105.5,2105.0,17.37747]
[1625239291137,2.80319783,2105.5,2105.0,20.13287]
[1625239291387,2.80319783,2105.5,2105.4,4.41054]
[1625239293294,2.80319783,2105.5,2105.4,2.20527]
[1625239293395,5.00846783,2105.5,2105.4,2.20527]
[1625239293547,5.84869078,2105.5,2105.4,2.20527]
[1625239293643,5.84869078,2105.5,2105.4,46.68537]
[1625239294796,2.20527,2105.5,2105.4,46.68537]
[1625239296601,5.00737742,2105.5,2105.4,46.68537]
[1625239298554,5.00737742,2105.5,2105.4,2.20527]
[1625239298652,8.16417742,2105.5,2105.4,2.20527]
[1625239298953,5.36207,2105.5,2105.4,2.20527]
[1625239299303,9.00404196,2105.5,2105.4,2.20527]
[1625239299613,5.36207,2105.5,2105.4,2.20527]
[1625239300258,2.20527,2105.5,2105.4,2.20527]
[1625239300914,5.84697581,2105.5,2105.4,2.20527]
[1625239301719,2.20527,2105.5,2105.4,2.20527]
[1625239302227,5.00636758,2105.5,2105.4,2.20527]
[1625239303684,5.00636758,2105.5,2105.4,42.98837]
[1625239303782,5.00636758,2105.5,2105.4,2.20527]
[1625239304085,5.84638897,2105.5,2105.4,2.20527]